bitfinex/quotes_SOLUSD_20251117
["timestamp","ask_amount","ask_price","bid_price","bid_amount"]
[1763409638981,9.11949896,129.66,129.65,0.68]
[1763409639185,9.11949896,129.66,129.65,18.12096]
[1763409639420,9.11949896,129.66,129.62,7.85654054]
[1763409639601,50.0,129.67,129.65,18.12096]
[1763409639922,50.0,129.65,129.62,2.43654054]
[1763409640282,50.0,129.63,129.62,2.43654054]
[1763409640511,9.11949896,129.68,129.62,2.43654054]
[1763409640512,50.0,129.65,129.62,2.43654054]
[1763409640807,9.11949896,129.63,129.62,2.43654054]
[1763409641115,18.23899792,129.63,129.62,2.43654054]
[1763409641279,18.23899792,129.63,129.61,0.1]
[1763409641280,78.02782561,129.63,129.61,0.1]
[1763409641480,50.0,129.61,129.51,5.73148984]
[1763409641681,9.78882769,129.62,129.49,0.1]
[1763409642019,50.0,129.63,129.55,18.12096]
[1763409642180,9.11949896,129.6,129.49,0.1]
[1763409642817,50.0,129.6,129.5,9.78882769]
[1763409643113,9.11949896,129.55,129.53,18.12096]
[1763409643312,59.11949896,129.6,129.5,23.64832665]
[1763409643485,50.0,129.64,129.52,18.90832665]
[1763409643682,9.11949896,129.59,129.57,18.12096]
[1763409643878,9.11949896,129.58,129.57,18.12096]
[1763409644084,50.0,129.64,129.57,18.12096]
[1763409644388,50.0,129.62,129.57,18.12096]
[1763409644593,9.11949896,129.58,129.57,18.12096]
[1763409645109,50.0,129.66,129.57,18.80096]
[1763409645414,9.11949896,129.59,129.57,18.80096]
[1763409645616,9.11949896,129.6,129.58,10.46882769]
[1763409645785,9.11949896,129.59,129.58,18.80096]
[1763409646203,9.11949896,129.6,129.58,18.80096]
[1763409646387,50.0,129.66,129.59,0.68]
[1763409646603,9.11949896,129.61,129.59,0.68]
[1763409647208,9.11949896,129.6,129.59,0.68]
[1763409647880,9.11949896,129.6,129.58,18.12096]
[1763409648080,9.11949896,129.6,129.58,18.80096]
[1763409648297,50.0,129.64,129.59,18.12096]
[1763409648891,9.11949896,129.6,129.59,18.12096]
[1763409649300,9.11949896,129.6,129.52,9.78882769]
[1763409649301,18.23899792,129.6,129.52,9.78882769]
[1763409649499,9.11949896,129.55,129.53,0.68]
[1763409649705,50.0,129.63,129.53,0.68]
[1763409649894,9.11949896,129.57,129.53,0.68]
[1763409650212,9.11949896,129.58,129.55,18.12096]
[1763409650585,9.11949896,129.58,129.56,0.68]
[1763409650786,50.0,129.67,129.6,18.12096]
[1763409650985,9.11949896,129.61,129.6,18.12096]
[1763409651424,9.11949896,129.61,129.58,18.80096]
[1763409651623,50.0,129.64,129.58,18.80096]
[1763409651624,9.11949896,129.59,129.58,18.80096]
[1763409651829,9.11949896,129.59,129.58,18.12096]
[1763409651989,9.11949896,129.59,129.56,0.68]
[1763409652193,9.11949896,129.57,129.56,0.68]
[1763409652688,9.11949896,129.57,129.54,0.68]
[1763409652895,9.11949896,129.55,129.54,0.68]
[1763409653093,9.11949896,129.55,129.54,18.80096]
[1763409653522,1e-08,129.55,129.54,57.26361455]
[1763409653726,1e-08,129.55,129.54,18.12096]
[1763409653934,1e-08,129.55,129.54,18.80096]
[1763409654514,9.11949896,129.56,129.54,18.80096]
[1763409654714,50.0,129.63,129.56,27.90978769]
[1763409654918,9.11949896,129.57,129.56,18.80096]
[1763409655613,9.11949896,129.58,129.56,28.58978769]
[1763409655815,7.94094639,129.64,129.57,10.46882769]
[1763409655816,9.11949896,129.59,129.57,10.46882769]
[1763409656018,50.0,129.65,129.6,18.12096]
[1763409656214,18.23899792,129.61,129.6,18.12096]
[1763409656394,9.11949896,129.61,129.59,18.80096]
[1763409656594,9.11949896,129.6,129.59,28.58978769]
[1763409656798,50.0,129.65,129.6,0.68]
[1763409657000,9.11949896,129.61,129.6,0.68]
[1763409657489,50.0,129.65,129.6,0.68]
[1763409657693,9.11949896,129.61,129.6,10.46882769]
[1763409657919,7.94094639,129.69,129.63,18.12096]
[1763409657920,57.94094639,129.69,129.63,18.12096]
[1763409658122,50.0,129.71,129.67,18.12096]
[1763409658307,9.11949896,129.68,129.67,18.12096]
[1763409658690,50.0,129.74,129.71,18.12096]
[1763409659106,50.72,129.74,129.71,18.12096]
[1763409659619,50.72,129.74,129.67,9.78882769]
[1763409659820,9.11949896,129.68,129.67,9.78882769]
[1763409659995,9.11949896,129.68,129.66,14.52882769]
[1763409660207,50.0,129.74,129.66,14.52882769]
[1763409660412,9.11949896,129.76,129.73,18.12096]
[1763409660730,50.0,129.77,129.73,18.12096]
[1763409661546,9.11949896,129.74,129.73,18.12096]
[1763409661715,0.2,129.81,129.77,18.12096]
[1763409661915,9.11949896,129.78,129.77,18.12096]
[1763409663331,0.2,129.81,129.8,18.12096]
[1763409663638,9.31949896,129.81,129.8,18.12096]
[1763409663974,0.2,129.81,129.8,27.90978769]
[1763409664511,10.03949896,129.81,129.8,27.90978769]
[1763409664711,10.03949896,129.81,129.77,18.12096]
[1763409664934,9.11949896,129.78,129.77,18.12096]
[1763409665507,9.11949896,129.78,129.77,27.90978769]
[1763409665823,9.11949896,129.78,129.73,4.74]
[1763409666144,0.72,129.8,129.77,18.12096]
[1763409666314,9.11949896,129.78,129.77,18.12096]
[1763409666721,0.2,129.81,129.77,27.90978769]
[1763409666923,0.2,129.81,129.8,18.12096]
[1763409667147,9.31949896,129.81,129.8,18.12096]
[1763409668655,9.31949896,129.81,129.8,27.90978769]
[1763409668859,0.92,129.81,129.76,4.74]
[1763409669036,9.11949896,129.77,129.68,38.06226018]
[1763409669236,50.72,129.8,129.71,38.25058417]
[1763409669436,50.72,129.8,129.74,27.90978769]
[1763409669632,9.11949896,129.75,129.65,46.98356334]
[1763409669854,9.11949896,129.71,129.66,4.74]
[1763409670057,9.11949896,129.71,129.67,4.74]
[1763409670274,9.11949896,129.71,129.69,18.12096]
[1763409670469,9.11949896,129.7,129.67,4.74]
[1763409670680,9.11949896,129.71,129.67,4.74]
[1763409671167,9.11949896,129.7,129.67,22.86096]
[1763409671547,9.11949896,129.7,129.68,9.78882769]
[1763409672064,0.68,129.74,129.72,18.12096]
[1763409672255,9.79949896,129.73,129.72,18.12096]
[1763409672862,0.68,129.73,129.72,18.12096]
[1763409673065,9.11949896,129.73,129.72,18.12096]
[1763409673360,9.11949896,129.73,129.7,18.12096]
[1763409673568,9.11949896,129.72,129.7,18.12096]
[1763409673771,9.11949896,129.71,129.7,27.90978769]
[1763409673949,9.11949896,129.71,129.68,18.12096]
[1763409674140,9.11949896,129.69,129.68,27.90978769]
[1763409674655,9.11949896,129.69,129.65,4.74]
[1763409674840,50.0,129.7,129.66,18.12096]
[1763409675036,9.11949896,129.67,129.66,18.12096]
[1763409675265,9.11949896,129.67,129.65,4.74]
[1763409675478,50.68,129.7,129.65,14.52882769]
[1763409675479,9.11949896,129.66,129.65,14.52882769]
[1763409675661,9.11949896,129.66,129.63,9.78882769]
[1763409675844,9.11949896,129.66,129.65,18.12096]
[1763409676376,59.79949896,129.66,129.58,9.11949896]
[1763409676574,9.11949896,129.63,129.58,4.74]
[1763409676786,9.11949896,129.64,129.62,18.12096]
[1763409677145,0.68,129.67,129.66,18.12096]
[1763409677367,50.0,129.7,129.66,18.12096]
[1763409677648,9.11949896,129.67,129.66,18.12096]
[1763409678777,9.11949896,129.68,129.66,18.12096]
[1763409680084,9.78949896,129.67,129.6,9.78882769]
[1763409680377,0.67,129.67,129.63,18.12096]
[1763409680545,9.11949896,129.64,129.63,27.90978769]
[1763409681677,0.67,129.67,129.63,27.90978769]
[1763409681872,9.11949896,129.64,129.61,18.12096]
[1763409682077,50.0,129.65,129.58,9.78882769]
[1763409682283,9.11949896,129.62,129.61,18.12096]
[1763409682484,9.11949896,129.64,129.62,9.78882769]
[1763409682847,9.11949896,129.64,129.62,18.12096]
[1763409682848,14.28294875,129.64,129.62,18.12096]
[1763409683272,14.28294875,129.63,129.62,27.90978769]
[1763409683580,14.28294875,129.64,129.62,27.90978769]
[1763409683990,14.95294875,129.63,129.52,8.41034479]
[1763409684142,14.28294875,129.61,129.55,14.28294875]
[1763409684346,14.28294875,129.61,129.59,18.12096]
[1763409684953,50.0,129.68,129.63,18.12096]
[1763409685158,14.28294875,129.65,129.63,27.90978769]
[1763409685371,14.28294875,129.66,129.63,27.90978769]
[1763409685572,14.28294875,129.7,129.68,18.12096]
[1763409685773,15.09374396,129.71,129.68,18.12096]
[1763409686072,0.14079521,129.71,129.7,9.78882769]
[1763409686262,0.14079521,129.71,129.7,24.07177644]
[1763409686465,0.14079521,129.71,129.7,24.84278646]
[1763409686675,0.16534022,129.72,129.71,9.78882769]
[1763409686974,0.16534022,129.72,129.71,24.07177644]
[1763409688070,0.16534022,129.72,129.71,14.52882769]
[1763409688280,0.16534022,129.72,129.71,28.81177644]
[1763409689084,0.16534022,129.72,129.71,24.07177644]
[1763409690582,0.16534022,129.72,129.71,9.78882769]
[1763409690783,0.16534022,129.72,129.71,24.07177644]
[1763409691154,0.16534022,129.72,129.71,9.78882769]
[1763409691680,65.11828897,129.72,129.6,17.3766492]
[1763409691878,14.28294875,129.68,129.61,4.74]
[1763409692080,14.28294875,129.69,129.64,14.28294875]
[1763409692251,14.28294875,129.69,129.67,18.12096]
[1763409692452,14.95294875,129.69,129.65,9.78882769]
[1763409692667,14.28294875,129.68,129.63,14.28294875]
[1763409692874,14.28294875,129.68,129.66,18.12096]
[1763409693074,14.28294875,129.68,129.63,14.28294875]
[1763409693260,14.28294875,129.68,129.61,4.74]
[1763409693571,14.28294875,129.68,129.66,18.12096]
[1763409693877,14.95294875,129.67,129.62,14.52882769]
[1763409694177,14.28294875,129.65,129.6,19.02294875]
[1763409694367,14.28294875,129.65,129.64,18.12096]
[1763409694766,14.28294875,129.65,129.61,9.78882769]
[1763409695276,14.28294875,129.64,129.61,9.78882769]
[1763409695478,14.28294875,129.62,129.58,9.78882769]
[1763409695677,0.67,129.62,129.57,4.74]
[1763409695877,14.28294875,129.61,129.59,18.12096]
[1763409696066,14.95294875,129.62,129.59,18.12096]
[1763409696379,50.67,129.62,129.58,9.78882769]
[1763409696676,14.95294875,129.61,129.59,18.12096]
[1763409696853,14.28294875,129.6,129.59,18.12096]
[1763409697055,64.95294875,129.6,129.51,6.42471522]
[1763409697269,14.28294875,129.57,129.53,14.28294875]
[1763409697468,0.67,129.59,129.51,6.42471522]
[1763409697469,0.67,129.59,129.51,21.86471519]
[1763409697674,0.67,129.58,129.5,11.16471522]
[1763409697886,0.67,129.58,129.56,18.12096]
[1763409698085,14.28294875,129.59,129.57,18.12096]
[1763409698382,0.67,129.6,129.53,6.42471522]
[1763409698564,0.67,129.59,129.53,6.42471522]
[1763409698877,0.67,129.59,129.55,18.12096]
[1763409699078,14.28294875,129.57,129.55,18.12096]
[1763409699383,14.28294875,129.56,129.52,9.78882769]
[1763409699590,0.67,129.58,129.52,24.07177644]
[1763409699756,50.0,129.62,129.59,18.12096]
[1763409699956,0.67,129.61,129.57,18.12096]
[1763409700154,14.95294875,129.61,129.6,18.12096]
[1763409700380,0.67,129.61,129.6,18.12096]
[1763409700584,0.67,129.61,129.55,11.16471522]
[1763409700585,14.95294875,129.61,129.59,9.78882769]
[1763409700881,14.95294875,129.61,129.59,18.12096]
[1763409701081,0.67,129.61,129.59,18.12096]
[1763409701290,14.95294875,129.6,129.59,18.12096]
[1763409701459,14.95294875,129.6,129.58,18.12096]
[1763409701667,0.68,129.59,129.58,18.12096]
[1763409701862,14.28294875,129.61,129.58,27.90978769]
[1763409702278,0.68,129.64,129.59,9.78882769]
[1763409702480,50.0,129.63,129.58,18.12096]
[1763409702681,50.0,129.63,129.6,18.12096]
[1763409702964,14.28294875,129.61,129.6,18.12096]
[1763409703164,64.28294875,129.61,129.55,4.74]
[1763409703381,14.96294875,129.6,129.59,18.12096]
[1763409703887,0.68,129.6,129.59,18.12096]
[1763409704491,64.96294875,129.6,129.54,18.12096]
[1763409704793,14.28294875,129.58,129.54,9.78882769]
[1763409704992,14.96294875,129.59,129.54,9.78882769]
[1763409705301,14.28294875,129.58,129.55,9.78882769]
[1763409705588,0.68,129.58,129.55,9.78882769]
[1763409705759,14.96294875,129.6,129.58,18.12096]
[1763409705964,14.96294875,129.6,129.56,9.78882769]
[1763409705965,14.28294875,129.61,129.59,18.12096]
[1763409706384,0.68,129.6,129.59,18.12096]
[1763409706691,14.28294875,129.62,129.59,18.12096]
[1763409706984,14.28294875,129.65,129.63,18.12096]
[1763409707771,0.14120789,129.67,129.63,18.12096]
[1763409707772,14.28294875,129.64,129.63,18.12096]
[1763409708181,64.28294875,129.64,129.63,18.12096]
[1763409708380,64.96294875,129.64,129.61,18.12096]
[1763409708581,14.28294875,129.62,129.61,18.12096]
[1763409709888,64.28294875,129.62,129.61,18.12096]
[1763409710093,64.28294875,129.62,129.54,4.74]
[1763409710094,64.28294875,129.62,129.56,9.78882769]
[1763409710313,50.0,129.64,129.56,24.07177644]
[1763409710473,50.0,129.64,129.59,18.12096]
[1763409710671,14.28294875,129.6,129.59,27.90978769]
[1763409710899,14.28294875,129.6,129.59,18.12096]
[1763409711278,64.28294875,129.6,129.59,18.12096]
[1763409711682,14.28294875,129.6,129.59,18.12096]
[1763409711879,14.28294875,129.6,129.55,9.78882769]
[1763409712080,14.28294875,129.59,129.58,18.12096]
[1763409712403,50.0,129.62,129.58,18.12096]
[1763409713100,14.28294875,129.6,129.58,18.12096]
[1763409713977,14.28294875,129.61,129.58,18.12096]
[1763409714180,14.28294875,129.6,129.58,18.12096]
[1763409714375,0.16961242,129.59,129.58,18.12096]
[1763409715203,64.45256117,129.59,129.58,18.12096]
[1763409715503,14.45256117,129.59,129.58,18.12096]
[1763409715905,65.13256117,129.59,129.55,18.12096]
[1763409716079,14.28294875,129.58,129.56,18.12096]
[1763409716282,0.16961242,129.59,129.57,9.78882769]
[1763409716479,14.45256117,129.59,129.57,9.78882769]
[1763409716898,14.28294875,129.58,129.57,9.78882769]
[1763409717213,14.28294875,129.58,129.56,9.78882769]
[1763409717399,14.28294875,129.57,129.56,9.78882769]
[1763409717601,0.16961242,129.59,129.56,9.78882769]
[1763409717796,14.28294875,129.58,129.54,9.78882769]
[1763409717993,14.28294875,129.57,129.53,9.78882769]
[1763409718197,50.0,129.56,129.53,9.78882769]
[1763409718506,64.28294875,129.54,129.5,9.78882769]
[1763409718701,64.16289716,129.52,129.49,0.1]
[1763409718897,14.28294875,129.51,129.49,0.1]
[1763409719199,14.28294875,129.51,129.47,6.04943182]
[1763409719200,50.0,129.48,129.47,3.84943182]
[1763409719612,64.28294875,129.48,129.47,3.84943182]
[1763409720121,64.87294875,129.48,129.47,3.84943182]
[1763409720338,64.28294875,129.48,129.47,3.84943182]
[1763409720521,14.28294875,129.49,129.47,4.56943182]
[1763409720722,14.28294875,129.49,129.48,18.12096]
[1763409720950,50.0,129.53,129.52,18.12096]
[1763409721226,50.0,129.52,129.49,0.72]
[1763409721728,50.0,129.54,129.49,0.72]
[1763409721928,50.0,129.54,129.51,18.12096]
[1763409722138,50.0,129.56,129.51,18.12096]
[1763409722327,50.0,129.58,129.52,28.62978769]
[1763409722500,14.28294875,129.54,129.52,28.62978769]
[1763409722702,14.28294875,129.55,129.53,0.72]
[1763409722902,50.0,129.58,129.53,0.72]
[1763409723198,14.28294875,129.54,129.53,10.50882769]
[1763409723413,50.0,129.56,129.53,0.72]
[1763409723620,14.28294875,129.55,129.54,0.72]
[1763409723799,0.16961242,129.59,129.57,18.12096]
[1763409724007,14.45256117,129.59,129.57,18.12096]
[1763409724224,0.16638443,129.6,129.59,9.78882769]
[1763409724611,0.14305104,129.61,129.59,24.79177644]
[1763409724813,14.44910957,129.64,129.61,9.78882769]
[1763409724814,0.16616082,129.64,129.61,9.78882769]
[1763409725043,50.14167291,129.63,129.62,18.12096]
[1763409725240,50.14167291,129.63,129.52,0.77208153]
[1763409725241,50.0,129.61,129.58,9.78882769]
[1763409725415,64.28294875,129.59,129.56,9.78882769]
[1763409725610,64.28294875,129.59,129.49,42.15077678]
[1763409725611,64.28294875,129.57,129.51,6.43883654]
[1763409725939,14.28294875,129.54,129.5,0.72]
[1763409726145,50.0,129.56,129.5,15.00294875]
[1763409726350,50.0,129.59,129.51,15.00294875]
[1763409726526,14.28294875,129.56,129.52,9.78882769]
[1763409726847,14.28294875,129.58,129.52,10.50882769]
[1763409727042,50.0,129.59,129.55,18.12096]
[1763409727334,64.28294875,129.61,129.56,24.07177644]
[1763409727539,50.14167291,129.63,129.59,18.12096]
[1763409727747,64.42462166,129.63,129.59,18.12096]
[1763409728049,0.14167291,129.63,129.62,9.78882769]
[1763409728354,0.14167291,129.63,129.62,10.50882769]
[1763409729238,0.14167291,129.63,129.62,18.12096]
[1763409729423,14.42462166,129.63,129.6,18.12096]
[1763409729626,14.28294875,129.62,129.6,18.12096]
[1763409729854,0.16616082,129.64,129.61,0.72]
[1763409730141,0.14042309,129.66,129.64,9.78882769]
[1763409730450,0.14042309,129.66,129.65,18.12096]
[1763409731016,0.14042309,129.66,129.61,18.12096]
[1763409731341,0.14042309,129.66,129.65,27.90978769]
[1763409731527,0.14042309,129.66,129.65,18.12096]
[1763409731940,50.0,129.64,129.59,24.07177644]
[1763409732245,64.28294875,129.64,129.62,18.12096]
[1763409732429,14.28294875,129.63,129.59,10.46882769]
[1763409732635,64.28294875,129.62,129.58,9.78882769]
[1763409732961,14.28294875,129.59,129.54,0.68]
[1763409733121,14.28294875,129.59,129.51,4.74]
[1763409733122,50.0,129.62,129.58,18.12096]
[1763409733324,14.28294875,129.61,129.59,18.12096]
[1763409733639,50.0,129.58,129.53,14.96294875]
[1763409733850,64.28294875,129.58,129.53,0.68]
[1763409734056,0.71,129.61,129.56,18.12096]
[1763409734272,2.14042309,129.66,129.58,14.28294875]
[1763409734273,14.28294875,129.63,129.58,14.28294875]
[1763409734416,14.28294875,129.63,129.57,18.12096]
[1763409734417,0.15356581,129.58,129.57,18.80096]
[1763409734622,0.15356581,129.58,129.57,18.12096]
[1763409734921,0.15356581,129.58,129.52,6.43883654]
[1763409735124,0.15356581,129.58,129.56,18.12096]
[1763409735325,0.15356581,129.58,129.57,18.12096]
[1763409735851,0.15356581,129.58,129.57,27.90978769]
[1763409736053,0.15356581,129.58,129.57,42.19273644]
[1763409736258,0.15356581,129.58,129.56,20.72178529]
[1763409736417,50.15356581,129.58,129.57,18.12096]
[1763409736862,0.15356581,129.58,129.57,14.96294875]
[1763409737147,0.15356581,129.58,129.55,38.84274529]
[1763409737354,50.15356581,129.58,129.55,18.12096]
[1763409737523,0.15356581,129.58,129.55,18.12096]
[1763409737918,50.15356581,129.58,129.55,18.12096]
[1763409738142,0.15356581,129.58,129.55,18.12096]
[1763409738341,50.0,129.56,129.55,18.12096]
[1763409738543,50.0,129.56,129.52,6.43883654]
[1763409738751,50.0,129.56,129.55,18.12096]
[1763409738752,50.68,129.56,129.55,18.12096]
[1763409739048,14.28294875,129.57,129.55,18.12096]
[1763409739248,14.43651456,129.58,129.53,20.72178529]
[1763409739466,50.0,129.57,129.53,14.28294875]
[1763409739974,50.68,129.57,129.54,18.12096]
[1763409740120,50.0,129.55,129.54,18.12096]
[1763409740452,50.0,129.55,129.51,22.87379639]
[1763409740453,50.0,129.53,129.51,6.43883654]
[1763409740834,50.0,129.51,129.5,6.43883654]
[1763409741152,50.0,129.51,129.48,6.53883654]
[1763409741525,50.0,129.51,129.5,18.12096]
[1763409741739,64.28294875,129.53,129.51,18.12096]
[1763409741962,50.0,129.53,129.5,6.43883654]
[1763409742143,50.0,129.53,129.5,39.55274529]
[1763409742339,50.0,129.56,129.53,18.12096]
[1763409742875,50.68,129.56,129.53,18.12096]
[1763409743065,9.12814657,129.57,129.53,18.12096]
[1763409743365,50.15356581,129.58,129.54,9.12814657]
[1763409743561,50.15356581,129.58,129.55,27.24910657]
[1763409743763,50.0,129.54,129.52,15.56698311]
[1763409743965,50.0,129.54,129.53,18.12096]
[1763409744346,50.0,129.54,129.52,18.12096]
[1763409744734,0.68,129.53,129.49,16.22766423]
[1763409744939,50.68,129.54,129.51,27.24910657]
[1763409745140,50.0,129.56,129.53,27.24910657]
[1763409745566,0.68,129.55,129.53,18.12096]
[1763409745870,50.0,129.54,129.53,18.12096]
[1763409746773,50.68,129.54,129.53,18.12096]
[1763409746967,50.68,129.54,129.49,9.78882769]
[1763409747175,50.0,129.52,129.51,18.12096]
[1763409747347,50.0,129.52,129.48,0.1]
[1763409747543,50.0,129.49,129.48,0.1]
[1763409747748,59.12814657,129.49,129.47,3.84943182]
[1763409747966,9.80814657,129.48,129.47,2.84943182]
[1763409748976,9.12814657,129.48,129.47,2.84943182]
[1763409749282,9.70814657,129.48,129.47,2.84943182]
[1763409749648,0.58,129.48,129.47,2.74943182]
[1763409750161,0.58,129.48,129.37,0.40602307]
[1763409750383,50.0,129.39,129.35,0.40039766]
[1763409750548,50.0,129.41,129.35,0.71]
[1763409750750,9.12814657,129.42,129.35,0.71]
[1763409750751,50.0,129.45,129.37,18.12096]
[1763409751050,50.0,129.45,129.41,9.12814657]
[1763409751257,50.0,129.43,129.4,18.12096]
[1763409751468,50.0,129.43,129.39,0.71]
[1763409751665,50.0,129.43,129.34,14.73407299]
[1763409751869,50.0,129.4,129.38,0.71]
[1763409752245,50.0,129.42,129.38,9.83814657]
[1763409752443,50.0,129.44,129.39,9.12814657]
[1763409752647,50.0,129.46,129.41,27.24910657]
[1763409752853,50.0,129.46,129.41,18.12096]
[1763409753062,50.0,129.46,129.42,0.71]
[1763409753264,50.0,129.46,129.45,18.12096]
[1763409753766,59.12814657,129.48,129.45,18.12096]
[1763409753972,50.0,129.48,129.46,18.12096]
[1763409754195,59.12814657,129.48,129.46,18.12096]
[1763409754402,0.14225342,129.47,129.46,18.12096]
[1763409754699,0.14225342,129.47,129.44,0.71]
[1763409754700,0.14225342,129.47,129.44,27.24910657]
[1763409754998,0.14225342,129.47,129.44,18.12096]
[1763409755294,50.0,129.46,129.39,6.46791777]
[1763409755460,59.12814657,129.46,129.44,18.12096]
[1763409755666,50.0,129.43,129.4,0.71]
[1763409755878,50.0,129.43,129.41,18.12096]
[1763409756087,50.0,129.41,129.37,0.71]
[1763409756469,50.0,129.41,129.35,0.71]
[1763409756470,50.0,129.38,129.35,0.71]
[1763409756662,50.0,129.4,129.35,0.71]
[1763409757170,50.0,129.4,129.37,18.12096]
[1763409757374,50.0,129.4,129.35,0.71]
[1763409757575,50.0,129.38,129.35,0.71]
[1763409758171,50.0,129.36,129.35,0.2801204]
[1763409759190,50.0,129.36,129.35,0.9901204]
[1763409759399,50.0,129.36,129.35,0.2801204]
[1763409759604,59.12814657,129.36,129.35,0.2801204]
[1763409760083,59.12814657,129.36,129.34,8.26615522]
[1763409760084,50.0,129.35,129.34,8.26615522]
[1763409760294,59.12814657,129.35,129.34,8.26615522]
[1763409760459,59.60814657,129.35,129.34,8.26615522]
[1763409761089,50.0,129.36,129.34,8.97615522]
[1763409761394,0.48,129.43,129.35,18.83096]
[1763409761395,50.0,129.38,129.35,18.83096]
[1763409761697,9.12814657,129.44,129.34,8.26615522]
[1763409761698,50.0,129.36,129.34,8.26615522]
[1763409762365,59.12814657,129.36,129.34,8.26615522]
[1763409762764,9.12814657,129.35,129.34,8.26615522]
[1763409762993,50.0,129.36,129.34,8.26615522]
[1763409763183,50.0,129.36,129.34,8.98615522]
[1763409763585,50.0,129.36,129.34,8.26615522]
[1763409764102,50.0,129.38,129.35,0.72]
[1763409764673,50.0,129.36,129.35,0.72]
[1763409764875,50.0,129.36,129.34,8.26615522]
[1763409766888,50.0,129.4,129.37,18.12096]
[1763409767071,50.0,129.42,129.38,0.72]
[1763409767399,50.0,129.42,129.38,9.84814657]
[1763409767581,50.0,129.42,129.38,0.72]
[1763409767779,50.0,129.42,129.39,0.72]
[1763409768286,2.15265663,129.48,129.37,18.12096]
[1763409768287,50.0,129.38,129.37,18.12096]
[1763409768496,50.0,129.36,129.34,8.98615522]
[1763409768969,50.0,129.36,129.35,0.72]
[1763409769174,50.0,129.36,129.34,27.10711522]
[1763409769392,50.0,129.36,129.35,0.72]
[1763409769786,50.0,129.38,129.35,0.72]
[1763409770110,50.0,129.38,129.37,18.12096]
[1763409770487,50.0,129.38,129.37,0.72]
[1763409770689,50.0,129.4,129.37,18.84096]
[1763409770891,50.0,129.4,129.38,0.72]
[1763409771476,50.0,129.4,129.39,18.12096]
[1763409771799,50.0,129.37,129.35,0.72]
[1763409772105,0.48,129.43,129.37,18.12096]
[1763409772106,59.12814657,129.39,129.37,18.12096]
[1763409772303,59.12814657,129.39,129.35,0.72]
[1763409772304,50.0,129.36,129.35,0.72]
[1763409772472,50.0,129.36,129.34,8.26615522]
[1763409772672,50.0,129.36,129.35,0.72]
[1763409773104,59.12814657,129.38,129.35,0.72]
[1763409773286,50.0,129.38,129.35,0.72]
[1763409773491,50.0,129.36,129.35,0.72]
[1763409773892,59.12814657,129.38,129.35,0.72]
[1763409774302,0.1674955,129.36,129.35,0.72]
[1763409774480,50.1674955,129.36,129.35,0.72]
[1763409775174,0.1674955,129.36,129.35,0.72]
[1763409775375,50.1674955,129.36,129.35,0.72]
[1763409775807,0.1674955,129.36,129.35,0.72]
[1763409776283,50.1674955,129.36,129.35,0.72]
[1763409778011,0.1674955,129.36,129.35,0.72]
[1763409779115,50.1674955,129.36,129.35,0.72]
[1763409780220,59.29564207,129.36,129.34,8.26615522]
[1763409780401,9.12814657,129.35,129.34,8.26615522]
[1763409780907,50.1674955,129.36,129.34,8.98615522]
[1763409781219,50.1674955,129.36,129.35,0.72]
[1763409781398,50.1674955,129.36,129.35,18.84096]
[1763409781715,0.1674955,129.36,129.35,18.84096]
[1763409782198,0.1674955,129.36,129.35,0.72]
[1763409782787,0.1674955,129.36,129.35,9.84814657]
[1763409783514,0.1674955,129.36,129.35,0.72]
[1763409783713,0.1549118,129.37,129.35,9.84814657]
[1763409783900,0.1549118,129.37,129.36,27.96910657]
[1763409784100,50.1549118,129.37,129.36,18.84096]
[1763409784318,0.1549118,129.37,129.36,27.96910657]
[1763409784795,0.14655885,129.38,129.36,37.09725314]
[1763409784998,0.15971712,129.4,129.39,18.12096]
[1763409785306,0.14630922,129.41,129.39,37.03793426]
[1763409785616,0.14630922,129.41,129.4,27.96910657]
[1763409786818,0.16651394,129.43,129.4,9.84814657]
[1763409787035,0.16651394,129.43,129.41,27.96910657]